[Event "FIDE WYCC Girls U18 2023"]
[Site "Montesilvano"]
[Date "2023.11.22"]
[Round "9.12"]
[White "Tikvesli, Ceylin"]
[Black "Cornileau, Juliette"]
[Result "0-1"]
[ECO "B56"]
[WhiteElo "1736"]
[BlackElo "2089"]
[Annotator "NA RC"]
[PlyCount "97"]
[EventDate "2023.11.13"]
[EventType "swiss"]
[EventCountry "ITA"]
[SourceTitle "playchess.com"]
[Source "ChessBase"]
[SourceQuality "1"]
[TimeControl "40/5400+30:1800+30"]

1. e4 {[%emt 0:00:03]} c5 {[%emt 0:00:05]} 2. Nf3 {[%emt 0:00:07]} d6 {[%emt 0:00:04]} 3. d4 {[%emt 0:02:07]} cxd4 {[%emt 0:00:05]} 4. Nxd4 {[%emt 0:00:06]} Nf6 {[%emt 0:00:06]} 5. Nc3 {[%emt 0:02:03]} Nc6 {[%emt 0:00:07]} 6. Nb3 {[%emt 0:11:52]} e6 {[%emt 0:16:39]} 7. Be3 {[%emt 0:07:13]} a6 {[%emt 0:01:47]} 8. a4 {[%emt 0:02:36]} d5 {[%emt 0:11:15]} 9. exd5 {[%emt 0:14:22]} exd5 {[%emt 0:01:25]} 10. Be2 {[%emt 0:01:55]} Bb4 {[%emt 0:02:40]} 11. O-O {[%emt 0:00:23]} O-O {[%emt 0:00:54]} 12. Na2 Bd6 {[%emt 0:02:03]} 13. Bf3 {[%emt 0:09:09]} Ne5 {[%emt 0:12:04]} 14. Bf4 {[%emt 0:20:22]} Qc7 {[%emt 0:15:12]} 15. Be2 {[%emt 0:03:58]} Neg4 {[%emt 0:12:47]} 16. Bxd6 {[%emt 0:01:10]} Qxd6 {[%emt 0:00:02]} 17. g3 {[%emt 0:00:51]} Ne5 {[%emt 0:03:53]} 18. Nd4 {[%emt 0:02:06]} Bh3 {[%emt 0:03:45]} 19. Re1 {[%emt 0:00:06]} Ne4 {[%emt 0:01:42]} 20. f4 {[%emt 0:07:37]} Nc6 {[%emt 0:02:47]} 21. c3 {[%emt 0:02:26]} Rfe8 {[%emt 0:03:51]} 22. Nc1 {[%emt 0:01:53]} Qg6 {[%emt 0:02:56]} 23. Bh5 {[%emt 0:02:26]} Qf6 {[%emt 0:00:22]} 24. Nxc6 {[%emt 0:01:34]} bxc6 {[%emt 0:00:01]} 25. Nd3 {[%emt 0:00:23]} d4 {[%emt 0:01:20]} 26. Bf3 {[%emt 0:01:54]} Nd6 {[%emt 0:02:59]} 27. Ne5 {[%emt 0:01:09]} Rab8 {[%emt 0:00:31]} 28. Bxc6 Red8 {[%emt 0:00:51]} 29. cxd4 {[%emt 0:02:40]} Nf5 {[%emt 0:00:43]} 30. d5 {[%emt 0:00:42]} Qd6 {[%emt 0:01:22]} 31. Qc1 {[%emt 0:01:30]} f6 {[%emt 0:00:18]} 32. Nf3 {[%emt 0:00:44]} Rb3 33. Ra3 {[%emt 0:00:31]} Rxa3 {[%emt 0:01:35]} 34. bxa3 {[%emt 0:00:02]} Qb8 {[%emt 0:00:24]} 35. Qc5 {[%emt 0:00:41]} Qb2 {[%emt 0:00:11]} 36. Qf2 {[%emt 0:00:10]} Qxa3 {[%emt 0:00:15]} 37. Nd2 {[%emt 0:00:51]} Ne7 {[%emt 0:01:07]} 38. Qe3 {[%emt 0:01:08]} Qxe3+ {[%emt 0:00:18]} 39. Rxe3 {[%emt 0:00:01]} Nxc6 {[%emt 0:00:08]} 40. dxc6 Rxd2 {[%emt 0:00:00]} 41. Rc3 {[%emt 0:00:54]} Rg2+ {[%emt 0:03:44]} 42. Kh1 {[%emt 0:02:16]} Rf2 {[%emt 0:02:11]} 43. Rc1 {[%emt 0:00:32]} Rf1+ {[%emt 0:00:14]} 44. Rxf1 {[%emt 0:00:05]} Bxf1 {[%emt 0:00:04]} 45. g4 {[%emt 0:00:58]} Be2 {[%emt 0:01:49]} 46. Kg2 {[%emt 0:01:33]} Bxg4 {[%emt 0:00:05]} 47. Kf2 {[%emt 0:00:07]} Kf7 {[%emt 0:00:29]} 48. Ke3 {[%emt 0:00:05]} Ke7 {[%emt 0:00:23]} 49. Kd4 0-1

[Event "FIDE WYCC Girls U18 2023"]
[Site "Montesilvano"]
[Date "2023.11.22"]
[Round "9.13"]
[White "Swara Lakshmi S Nair"]
[Black "Abrisqueta Zudaire, Leyre"]
[Result "0-1"]
[ECO "B40"]
[WhiteElo "1659"]
[BlackElo "2137"]
[Annotator "RC"]
[PlyCount "116"]
[EventDate "2023.11.13"]
[EventType "swiss"]
[EventCountry "ITA"]
[SourceTitle "playchess.com"]
[Source "ChessBase"]
[SourceQuality "1"]
[TimeControl "40/5400+30:1800+30"]

1. e4 {[%emt 0:04:22]} c5 {[%emt 0:00:08]} 2. Nf3 {[%emt 0:00:10]} e6 {[%emt 0:00:06]} 3. d4 {[%emt 0:00:05]} cxd4 {[%emt 0:00:06]} 4. Nxd4 {[%emt 0:00:07]} Nf6 {[%emt 0:00:07]} 5. Nc3 {[%emt 0:00:37]} Nc6 {[%emt 0:00:08]} 6. Ndb5 {[%emt 0:00:10]} Bc5 {[%emt 0:00:10]} 7. Nd6+ {[%emt 0:06:21]} Ke7 {[%emt 0:00:24]} 8. Bf4 {[%emt 0:00:07]} e5 {[%emt 0:00:45]} 9. Nf5+ {[%emt 0:00:11]} Kf8 {[%emt 0:00:18]} 10. Bg5 {[%emt 0:03:36]} d6 {[%emt 0:02:45]} 11. Ne3 {[%emt 0:35:17]} Be6 {[%emt 0:12:55]} 12. Qd2 {[%emt 0:17:31]} Bd4 {[%emt 0:16:39]} 13. Bd3 {[%emt 0:01:32]} h6 {[%emt 0:08:31]} 14. Bxf6 {[%emt 0:07:31]} Qxf6 {[%emt 0:00:13]} 15. Ncd5 {[%emt 0:02:39]} Qg5 {[%emt 0:04:24]} 16. c3 {[%emt 0:01:49]} Bxe3 {[%emt 0:07:12]} 17. Nxe3 {[%emt 0:00:34]} Rd8 {[%emt 0:00:23]} 18. f3 {[%emt 0:07:00]} g6 {[%emt 0:03:52]} 19. Bc4 {[%emt 0:02:12]} Bxc4 {[%emt 0:06:28]} 20. Nxc4 {[%emt 0:00:03]} d5 {[%emt 0:04:18]} 21. Qxg5 {[%emt 0:02:09]} hxg5 {[%emt 0:00:05]} 22. exd5 {[%emt 0:00:22]} Rxd5 {[%emt 0:00:07]} 23. Ke2 {[%emt 0:04:58]} Ke7 {[%emt 0:03:07]} 24. b4 {[%emt 0:01:56]} Ke6 {[%emt 0:06:16]} 25. a4 {[%emt 0:00:44]} Ne7 {[%emt 0:02:04]} 26. Ne3 {[%emt 0:00:37]} Rd7 {[%emt 0:00:21]} 27. h3 {[%emt 0:00:32]} f5 {[%emt 0:02:24]} 28. Rhd1 {[%emt 0:00:33]} Rc7 {[%emt 0:00:16]} 29. Rac1 {[%emt 0:00:22]} Rhc8 {[%emt 0:01:29]} 30. Rd3 {[%emt 0:00:11]} f4 {[%emt 0:01:22]} 31. Nd1 {[%emt 0:00:57]} Rc4 {[%emt 0:01:58]} 32. Kd2 {[%emt 0:00:20]} Nf5 {[%emt 0:04:54]} 33. Rc2 {[%emt 0:00:38]} a5 {[%emt 0:03:50]} 34. bxa5 {[%emt 0:00:44]} Rxa4 {[%emt 0:00:21]} 35. Rb2 {[%emt 0:00:09]} Nd6 {[%emt 0:03:13]} 36. Rb6 {[%emt 0:00:17]} Rc6 {[%emt 0:00:10]} 37. Nb2 {[%emt 0:00:10]} Ra2 {[%emt 0:04:32]} 38. Kc1 {[%emt 0:00:01]} Rxb6 {[%emt 0:00:33]} 39. axb6 {[%emt 0:00:02]} Ra6 {[%emt 0:01:30]} 40. c4 {[%emt 0:00:00]} Nf5 {[%emt 0:00:00]} 41. Rb3 {[%emt 0:04:03]} Nd4 {[%emt 0:04:56]} 42. Rb4 {[%emt 0:01:48]} Ra1+ {[%emt 0:01:20]} 43. Kd2 {[%emt 0:00:02]} Rg1 {[%emt 0:01:20]} 44. Kd3 {[%emt 0:00:49]} Rxg2 {[%emt 0:00:43]} 45. Na4 {[%emt 0:00:15]} Kd6 {[%emt 0:02:17]} 46. Nc3 {[%emt 0:00:07]} Nxf3 {[%emt 0:01:36]} 47. Ne4+ {[%emt 0:00:08]} Kc6 {[%emt 0:01:09]} 48. Rb5 {[%emt 0:00:01]} Rg1 {[%emt 0:05:43]} 49. Rd5 {[%emt 0:03:11]} Rd1+ {[%emt 0:09:22]} 50. Ke2 {[%emt 0:00:08]} Re1+ {[%emt 0:00:07]} 51. Kxf3 {[%emt 0:00:09]} Re3+ {[%emt 0:00:03]} 52. Kg4 {[%emt 0:00:23]} Rxe4 {[%emt 0:00:07]} 53. Kxg5 {[%emt 0:00:07]} f3 {[%emt 0:00:19]} 54. Rd1 {[%emt 0:00:12]} f2 {[%emt 0:00:28]} 55. Rf1 {[%emt 0:00:04]} Rf4 {[%emt 0:00:03]} 56. h4 {[%emt 0:00:08]} Rf8 {[%emt 0:00:54]} 57. Kxg6 {[%emt 0:00:28]} e4 {[%emt 0:00:04]} 58. h5 {[%emt 0:00:19]} e3 {[%emt 0:00:12]} 0-1

[Event "FIDE WYCC Girls U18 2023"]
[Site "Montesilvano"]
[Date "2023.11.22"]
[Round "9.14"]
[White "Hakobyan, Astghik"]
[Black "Wisniowski, Natalie"]
[Result "1-0"]
[ECO "B10"]
[WhiteElo "2073"]
[BlackElo "1901"]
[Annotator "RC"]
[PlyCount "119"]
[EventDate "2023.11.13"]
[EventType "swiss"]
[EventCountry "ITA"]
[SourceTitle "playchess.com"]
[Source "ChessBase"]
[SourceQuality "1"]
[TimeControl "40/5400+30:1800+30"]

1. e4 {[%emt 0:00:03]} c6 {[%emt 0:00:08]} 2. Nf3 {[%emt 0:00:08]} d5 {[%emt 0:00:10]} 3. d3 {[%emt 0:00:03]} dxe4 {[%emt 0:00:13]} 4. dxe4 {[%emt 0:00:05]} Qxd1+ {[%emt 0:00:13]} 5. Kxd1 {[%emt 0:00:06]} Nf6 {[%emt 0:00:15]} 6. Nbd2 {[%emt 0:00:26]} g6 {[%emt 0:00:46]} 7. Bc4 {[%emt 0:07:17]} Ng4 {[%emt 0:02:59]} 8. Ke2 {[%emt 0:01:20]} Nd7 {[%emt 0:00:37]} 9. a4 {[%emt 0:08:43]} Nge5 {[%emt 0:00:58]} 10. Nxe5 {[%emt 0:03:56]} Nxe5 {[%emt 0:00:03]} 11. Bb3 {[%emt 0:00:25]} Bh6 {[%emt 0:09:07]} 12. a5 {[%emt 0:05:32]} O-O {[%emt 0:03:50]} 13. f3 {[%emt 0:07:08]} Kg7 {[%emt 0:07:02]} 14. g3 {[%emt 0:01:33]} Nd7 {[%emt 0:08:50]} 15. Bc4 {[%emt 0:05:48]} Kg8 {[%emt 0:07:26]} 16. f4 {[%emt 0:06:27]} Nc5 {[%emt 0:05:33]} 17. b4 {[%emt 0:03:22]} Bg7 {[%emt 0:02:59]} 18. Ra3 {[%emt 0:10:53]} Ne6 {[%emt 0:04:07]} 19. c3 {[%emt 0:04:49]} Nc7 {[%emt 0:02:08]} 20. Nf3 {[%emt 0:06:54]} Be6 {[%emt 0:03:21]} 21. Bxe6 {[%emt 0:00:57]} Nxe6 {[%emt 0:00:14]} 22. Be3 {[%emt 0:00:58]} Rfd8 {[%emt 0:02:37]} 23. e5 {[%emt 0:06:51]} f6 {[%emt 0:06:47]} 24. c4 {[%emt 0:02:43]} Nc7 {[%emt 0:04:16]} 25. Rd1 {[%emt 0:02:41]} Rxd1 {[%emt 0:09:30]} 26. Kxd1 {[%emt 0:00:02]} Kf7 {[%emt 0:00:16]} 27. Rd3 {[%emt 0:01:07]} Ke8 {[%emt 0:00:28]} 28. Kc2 {[%emt 0:02:12]} Ne6 {[%emt 0:07:01]} 29. h4 {[%emt 0:02:47]} h5 {[%emt 0:01:37]} 30. Kb3 {[%emt 0:01:34]} Bh8 {[%emt 0:04:03]} 31. Bf2 {[%emt 0:03:13]} Bg7 {[%emt 0:01:37]} 32. Rd2 {[%emt 0:02:24]} Bh8 {[%emt 0:01:57]} 33. Ka4 {[%emt 0:01:42]} Bg7 {[%emt 0:02:19]} 34. Re2 {[%emt 0:02:24]} Kd7 {[%emt 0:00:49]} 35. b5 {[%emt 0:00:34]} cxb5+ {[%emt 0:00:45]} 36. Kxb5 {[%emt 0:00:43]} Nc7+ {[%emt 0:01:14]} 37. Kb4 {[%emt 0:00:25]} Ne6 {[%emt 0:00:22]} 38. Nd4 {[%emt 0:00:40]} fxe5 {[%emt 0:01:28]} 39. fxe5 {[%emt 0:00:24]} Nxd4 {[%emt 0:00:19]} 40. Bxd4 {[%emt 0:00:00]} Ke6 {[%emt 0:00:00]} 41. Kb5 {[%emt 0:07:51]} Bh6 {[%emt 0:06:55]} 42. a6 {[%emt 0:07:21]} bxa6+ {[%emt 0:02:47]} 43. Kxa6 {[%emt 0:00:18]} Rc8 {[%emt 0:00:56]} 44. Rc2 {[%emt 0:08:40]} Rd8 {[%emt 0:01:12]} 45. Bxa7 {[%emt 0:01:12]} Rd3 {[%emt 0:04:50]} 46. c5 {[%emt 0:03:56]} Be3 {[%emt 0:02:11]} 47. Bb8 {[%emt 0:01:17]} Ra3+ {[%emt 0:02:31]} 48. Kb7 {[%emt 0:00:14]} Rb3+ {[%emt 0:00:18]} 49. Kc8 {[%emt 0:01:11]} Bxc5 {[%emt 0:05:05]} 50. Rxc5 {[%emt 0:00:06]} Rxg3 {[%emt 0:00:05]} 51. Rc6+ {[%emt 0:01:39]} Kd5 {[%emt 0:00:25]} 52. Kd7 {[%emt 0:00:31]} Rg4 {[%emt 0:03:00]} 53. Ra6 {[%emt 0:00:42]} Rb4 {[%emt 0:00:35]} 54. Bc7 {[%emt 0:00:12]} Rc4 {[%emt 0:01:04]} 55. e6 {[%emt 0:01:11]} Ke4 {[%emt 0:00:59]} 56. Rc6 {[%emt 0:00:28]} Rd4+ {[%emt 0:01:37]} 57. Kxe7 {[%emt 0:00:17]} Kf5 {[%emt 0:00:15]} 58. Kf7 {[%emt 0:00:23]} Kg4 {[%emt 0:00:40]} 59. e7 {[%emt 0:00:24]} Rd7 {[%emt 0:00:13]} 60. Ke6 {[%emt 0:00:23]} 1-0

[Event "FIDE WYCC Girls U18 2023"]
[Site "Montesilvano"]
[Date "2023.11.22"]
[Round "9.15"]
[White "Obada, Ema"]
[Black "Sovetbekova, Nurai"]
[Result "1-0"]
[ECO "B90"]
[WhiteElo "2023"]
[BlackElo "1801"]
[Annotator "NA RC"]
[PlyCount "83"]
[EventDate "2023.11.13"]
[EventType "swiss"]
[EventCountry "ITA"]
[SourceTitle "playchess.com"]
[Source "ChessBase"]
[SourceQuality "1"]
[TimeControl "40/5400+30:1800+30"]

1. e4 {[%emt 0:00:03]} c5 {[%emt 0:00:05]} 2. Nf3 {[%emt 0:00:04]} d6 {[%emt 0:00:04]} 3. d4 {[%emt 0:00:07]} cxd4 {[%emt 0:00:06]} 4. Nxd4 {[%emt 0:00:03]} Nf6 {[%emt 0:00:06]} 5. Nc3 {[%emt 0:00:05]} a6 {[%emt 0:00:04]} 6. f3 {[%emt 0:00:06]} e5 {[%emt 0:00:05]} 7. Nb3 {[%emt 0:00:03]} Be6 {[%emt 0:00:11]} 8. Be3 {[%emt 0:00:35]} h5 {[%emt 0:00:08]} 9. Nd5 {[%emt 0:00:21]} Bxd5 {[%emt 0:00:43]} 10. exd5 {[%emt 0:00:05]} Nbd7 {[%emt 0:00:20]} 11. Qd2 {[%emt 0:00:38]} g6 {[%emt 0:00:26]} 12. O-O-O {[%emt 0:00:32]} Bg7 {[%emt 0:00:21]} 13. Kb1 {[%emt 0:02:11]} Qc7 {[%emt 0:01:04]} 14. Be2 {[%emt 0:20:52]} O-O {[%emt 0:00:23]} 15. g4 {[%emt 0:04:00]} Rfc8 {[%emt 0:03:00]} 16. Rc1 {[%emt 0:05:08]} a5 {[%emt 0:04:10]} 17. g5 {[%emt 0:08:15]} Ne8 {[%emt 0:00:40]} 18. a4 {[%emt 0:00:05]} Qd8 {[%emt 0:25:55]} 19. Bb5 {[%emt 0:05:21]} Nc5 {[%emt 0:09:23]} 20. Rhd1 {[%emt 0:11:11]} Nc7 {[%emt 0:12:30]} 21. Nxc5 {[%emt 0:11:42]} Nxb5 {[%emt 0:05:44]} 22. Nb3 {[%emt 0:07:34]} Nc7 {[%emt 0:07:03]} 23. Nxa5 {[%emt 0:03:04]} Qd7 {[%emt 0:05:48]} 24. b3 {[%emt 0:06:03]} b5 {[%emt 0:01:24]} 25. c4 {[%emt 0:00:32]} bxa4 {[%emt 0:01:31]} 26. b4 {[%emt 0:00:03]} Na6 {[%emt 0:10:34]} 27. Nc6 {[%emt 0:05:01]} Nb8 {[%emt 0:00:29]} 28. b5 {[%emt 0:02:39]} Qb7 {[%emt 0:04:52]} 29. Ka2 {[%emt 0:00:32]} Kh7 {[%emt 0:01:19]} 30. f4 {[%emt 0:01:33]} exf4 {[%emt 0:02:13]} 31. Bd4 {[%emt 0:00:43]} Re8 {[%emt 0:02:03]} 32. Bxg7 {[%emt 0:00:38]} Kxg7 {[%emt 0:00:01]} 33. Qxf4 {[%emt 0:00:27]} Re2+ {[%emt 0:00:57]} 34. Rd2 {[%emt 0:00:02]} Rxd2+ {[%emt 0:00:53]} 35. Qxd2 {[%emt 0:00:03]} Nxc6 {[%emt 0:00:22]} 36. dxc6 {[%emt 0:00:08]} Qc7 {[%emt 0:01:34]} 37. Rd1 {[%emt 0:01:19]} Rd8 {[%emt 0:00:15]} 38. Qd5 {[%emt 0:01:28]} Qe7 {[%emt 0:01:47]} 39. Rd2 {[%emt 0:00:35]} Kg8 {[%emt 0:00:45]} 40. c5 {[%emt 0:00:00]} Qe3 {[%emt 0:00:00]} 41. c7 {[%emt 0:01:34]} Re8 {[%emt 0:01:46]} 42. cxd6 {[%emt 0:00:19]} 1-0

[Event "FIDE WYCC Girls U18 2023"]
[Site "Montesilvano"]
[Date "2023.11.22"]
[Round "9.16"]
[White "Oviedo Acosta, Paula"]
[Black "Groeschel, Karoline"]
[Result "0-1"]
[ECO "B56"]
[WhiteElo "1639"]
[BlackElo "1924"]
[Annotator "NA RC"]
[PlyCount "58"]
[EventDate "2023.11.13"]
[EventType "swiss"]
[EventCountry "ITA"]
[SourceTitle "playchess.com"]
[Source "ChessBase"]
[SourceQuality "1"]
[TimeControl "40/5400+30:1800+30"]

1. e4 {[%emt 0:00:33]} c5 {[%emt 0:00:04]} 2. Nc3 {[%emt 0:00:12]} Nc6 {[%emt 0:00:39]} 3. Nf3 {[%emt 0:01:51]} d6 {[%emt 0:00:07]} 4. d4 {[%emt 0:00:16]} cxd4 {[%emt 0:00:04]} 5. Nxd4 {[%emt 0:00:09]} Nf6 6. Be3 {[%emt 0:04:59]} Ng4 {[%emt 0:00:09]} 7. Nxc6 {[%emt 0:00:18]} bxc6 {[%emt 0:00:05]} 8. Qf3 {[%emt 0:01:00]} Nxe3 {[%emt 0:01:08]} 9. Qxe3 {[%emt 0:00:32]} g6 {[%emt 0:11:53]} 10. e5 {[%emt 0:07:48]} Bg7 {[%emt 0:09:14]} 11. exd6 {[%emt 0:04:38]} Qxd6 {[%emt 0:01:39]} 12. Bd3 {[%emt 0:05:45]} Qb4 {[%emt 0:06:05]} 13. O-O {[%emt 0:00:11]} Qxb2 {[%emt 0:06:52]} 14. Rae1 {[%emt 0:06:43]} O-O {[%emt 0:01:24]} 15. Nd1 {[%emt 0:01:38]} Qxa2 {[%emt 0:01:56]} 16. Qxe7 {[%emt 0:00:06]} Be6 {[%emt 0:01:40]} 17. h4 {[%emt 0:00:37]} Rfe8 {[%emt 0:01:52]} 18. Qd6 {[%emt 0:03:11]} Qd5 {[%emt 0:01:59]} 19. Qg3 {[%emt 0:02:43]} a5 {[%emt 0:02:41]} 20. Ne3 {[%emt 0:02:53]} Qc5 {[%emt 0:00:37]} 21. Qf3 {[%emt 0:04:46]} a4 {[%emt 0:06:22]} 22. h5 {[%emt 0:09:08]} Qxh5 {[%emt 0:08:17]} 23. Qxc6 {[%emt 0:00:52]} Rec8 {[%emt 0:00:10]} 24. Qb7 {[%emt 0:02:32]} Qa5 {[%emt 0:02:50]} 25. c4 {[%emt 0:03:40]} a3 {[%emt 0:01:30]} 26. Nc2 {[%emt 0:04:21]} Qc7 {[%emt 0:10:37]} 27. Qb3 {[%emt 0:01:03]} Rcb8 {[%emt 0:02:58]} 28. Nb4 {[%emt 0:03:43]} Bf8 {[%emt 0:00:43]} 29. Bxg6 {[%emt 0:04:38]} hxg6 {[%emt 0:01:55]} 0-1

[Event "FIDE WYCC Girls U18 2023"]
[Site "Montesilvano"]
[Date "2023.11.22"]
[Round "9.17"]
[White "Dakic, Marta"]
[Black "Tsapaki, Asimenia"]
[Result "1-0"]
[ECO "B40"]
[WhiteElo "2013"]
[BlackElo "1702"]
[Annotator "NA RC"]
[PlyCount "95"]
[EventDate "2023.11.13"]
[EventType "swiss"]
[EventCountry "ITA"]
[SourceTitle "playchess.com"]
[Source "ChessBase"]
[SourceQuality "1"]
[TimeControl "40/5400+30:1800+30"]

1. e4 {[%emt 0:00:05]} c5 {[%emt 0:00:09]} 2. Nf3 {[%emt 0:00:17]} e6 {[%emt 0:00:07]} 3. d4 {[%emt 0:00:06]} cxd4 {[%emt 0:00:04]} 4. Nxd4 {[%emt 0:00:10]} Nf6 {[%emt 0:00:09]} 5. Nc3 {[%emt 0:00:26]} Nc6 {[%emt 0:00:08]} 6. Ndb5 {[%emt 0:01:25]} Bb4 {[%emt 0:00:14]} 7. a3 {[%emt 0:00:13]} Bxc3+ {[%emt 0:00:06]} 8. Nxc3 {[%emt 0:00:06]} d5 {[%emt 0:00:07]} 9. exd5 {[%emt 0:02:27]} exd5 {[%emt 0:00:07]} 10. Bd3 {[%emt 0:01:36]} O-O {[%emt 0:00:13]} 11. O-O {[%emt 0:00:52]} d4 {[%emt 0:00:17]} 12. Ne2 {[%emt 0:03:13]} Bg4 {[%emt 0:00:15]} 13. f3 {[%emt 0:07:27]} Bh5 {[%emt 0:00:24]} 14. Bg5 {[%emt 0:04:07]} Bg6 {[%emt 0:00:27]} 15. Bh4 {[%emt 0:03:31]} Qd6 {[%emt 0:02:43]} 16. Bf2 {[%emt 0:02:18]} Rad8 {[%emt 0:00:47]} 17. Qd2 {[%emt 0:06:15]} Rd7 {[%emt 0:04:38]} 18. Rad1 {[%emt 0:10:27]} Rfd8 {[%emt 0:01:30]} 19. Bxg6 {[%emt 0:04:25]} hxg6 {[%emt 0:00:10]} 20. Qf4 {[%emt 0:00:37]} Qxf4 {[%emt 0:01:58]} 21. Nxf4 {[%emt 0:00:10]} Nd5 {[%emt 0:01:54]} 22. Nxd5 {[%emt 0:03:17]} Rxd5 {[%emt 0:00:11]} 23. Rfe1 {[%emt 0:07:55]} Rb5 {[%emt 0:07:44]} 24. b3 {[%emt 0:01:45]} Ra5 {[%emt 0:01:46]} 25. a4 {[%emt 0:00:34]} Rc5 {[%emt 0:00:20]} 26. Re2 {[%emt 0:04:36]} Rcd5 {[%emt 0:08:06]} 27. Red2 {[%emt 0:00:58]} f6 {[%emt 0:10:14]} 28. c3 {[%emt 0:05:48]} d3 {[%emt 0:01:15]} 29. b4 {[%emt 0:00:04]} a6 {[%emt 0:01:02]} 30. Bb6 {[%emt 0:00:58]} R8d7 {[%emt 0:03:22]} 31. c4 {[%emt 0:05:07]} Re5 {[%emt 0:01:45]} 32. b5 {[%emt 0:07:56]} axb5 {[%emt 0:01:05]} 33. axb5 {[%emt 0:00:16]} Nb4 {[%emt 0:10:30]} 34. Ba5 {[%emt 0:00:09]} Nc2 {[%emt 0:01:19]} 35. Rxd3 {[%emt 0:00:09]} Rde7 {[%emt 0:00:25]} 36. Rd8+ {[%emt 0:05:22]} Kh7 {[%emt 0:00:38]} 37. R8d7 {[%emt 0:03:11]} Ne3 {[%emt 0:03:19]} 38. Rxe7 {[%emt 0:00:17]} Rxe7 {[%emt 0:00:07]} 39. Re1 {[%emt 0:00:22]} Nf5 {[%emt 0:02:23]} 40. Rxe7 {[%emt 0:00:00]} Nxe7 {[%emt 0:00:00]} 41. Bd8 {[%emt 0:04:02]} Nf5 {[%emt 0:02:09]} 42. c5 {[%emt 0:03:17]} Nd4 {[%emt 0:01:26]} 43. c6 {[%emt 0:00:14]} bxc6 {[%emt 0:04:47]} 44. b6 {[%emt 0:00:06]} c5 {[%emt 0:00:19]} 45. b7 {[%emt 0:00:05]} Nc6 {[%emt 0:00:05]} 46. Bc7 {[%emt 0:00:04]} c4 {[%emt 0:00:24]} 47. Kf2 {[%emt 0:01:09]} c3 {[%emt 0:00:21]} 48. Ke3 {[%emt 0:00:56]} 1-0

[Event "FIDE WYCC Girls U18 2023"]
[Site "Montesilvano"]
[Date "2023.11.22"]
[Round "9.18"]
[White "Menon, Gauri"]
[Black "Follana Albelda, Lucia"]
[Result "0-1"]
[ECO "E46"]
[WhiteElo "1821"]
[BlackElo "1946"]
[Annotator "NA RC"]
[PlyCount "58"]
[EventDate "2023.11.13"]
[EventType "swiss"]
[EventCountry "ITA"]
[SourceTitle "playchess.com"]
[Source "ChessBase"]
[SourceQuality "1"]
[TimeControl "40/5400+30:1800+30"]

1. d4 {[%emt 0:00:02]} Nf6 {[%emt 0:00:09]} 2. c4 {[%emt 0:00:07]} e6 {[%emt 0:00:05]} 3. Nc3 {[%emt 0:00:04]} Bb4 {[%emt 0:00:09]} 4. e3 {[%emt 0:00:08]} O-O {[%emt 0:00:26]} 5. Bd2 {[%emt 0:00:29]} d5 {[%emt 0:02:04]} 6. Nf3 {[%emt 0:02:12]} Bd6 {[%emt 0:08:06]} 7. Rc1 {[%emt 0:01:26]} c6 {[%emt 0:00:41]} 8. Bd3 {[%emt 0:02:10]} Nbd7 {[%emt 0:02:35]} 9. O-O {[%emt 0:00:52]} dxc4 {[%emt 0:09:16]} 10. Bxc4 {[%emt 0:00:16]} e5 {[%emt 0:00:20]} 11. Bd3 {[%emt 0:20:38]} Re8 {[%emt 0:02:03]} 12. Ng5 {[%emt 0:08:56]} exd4 {[%emt 0:08:02]} 13. exd4 {[%emt 0:01:06]} h6 {[%emt 0:00:13]} 14. Nge4 {[%emt 0:00:31]} Nxe4 {[%emt 0:04:48]} 15. Nxe4 {[%emt 0:01:53]} Bb8 {[%emt 0:03:55]} 16. Qf3 {[%emt 0:10:46]} Nb6 {[%emt 0:07:07]} 17. Qh5 {[%emt 0:21:35]} Qd5 {[%emt 0:23:20]} 18. Nf6+ {[%emt 0:08:17]} gxf6 {[%emt 0:00:39]} 19. Qxh6 {[%emt 0:02:41]} Bf5 {[%emt 0:01:20]} 20. Qxf6 {[%emt 0:03:04]} Bxd3 {[%emt 0:06:14]} 21. Rfe1 {[%emt 0:09:25]} Re6 {[%emt 0:03:15]} 22. Rxe6 {[%emt 0:00:29]} Qxe6 {[%emt 0:00:10]} 23. Qd8+ {[%emt 0:02:08]} Kg7 {[%emt 0:00:39]} 24. Qg5+ {[%emt 0:00:08]} Qg6 {[%emt 0:00:18]} 25. Qe7 {[%emt 0:00:07]} Bd6 {[%emt 0:00:40]} 26. Qxb7 {[%emt 0:00:48]} Rh8 {[%emt 0:02:24]} 27. f4 {[%emt 0:00:21]} Be4 {[%emt 0:00:40]} 28. g3 {[%emt 0:00:29]} Qh5 {[%emt 0:00:15]} 29. h4 {[%emt 0:00:27]} Qf3 0-1